bitfinex/quotes_ETHUSD_20250422
["timestamp","ask_amount","ask_price","bid_price","bid_amount"]
[1745320447738,6.06431488,1626.3,1626.2,0.42711016]
[1745320448236,17.51069544,1626.5,1626.2,0.42711016]
[1745320448539,17.51069544,1626.5,1626.3,4.58980961]
[1745320448743,21.98281908,1626.5,1626.4,0.22990283]
[1745320448921,21.98281908,1626.5,1626.3,4.58980961]
[1745320449239,17.50990828,1626.7,1626.3,4.58980961]
[1745320449429,17.50990828,1626.7,1626.5,3.78070961]
[1745320449625,11.36231488,1626.7,1626.5,3.78070961]
[1745320449825,17.50972989,1626.7,1626.6,0.22890402]
[1745320450354,18.26182989,1626.7,1626.6,0.22890402]
[1745320450508,6.14817091,1626.5,1626.4,0.19200639]
[1745320450846,6.90027091,1626.5,1626.4,0.42038176]
[1745320451140,6.90027091,1626.5,1626.4,0.22837537]
[1745320451341,6.14878123,1626.4,1626.2,3.78070961]
[1745320451543,6.06431488,1626.4,1626.3,0.22844518]
[1745320451838,12.21286382,1626.4,1626.3,0.22844518]
[1745320452213,14.63615419,1626.4,1626.3,0.22844518]
[1745320452420,6.14892701,1626.3,1626.2,3.78070961]
[1745320452619,12.21286382,1626.4,1626.2,3.78070961]
[1745320452941,12.21286382,1626.4,1626.2,3.99020474]
[1745320453149,12.21286382,1626.4,1626.2,0.20949513]
[1745320453351,13.5093602,1626.4,1626.2,0.20949513]
[1745320453643,13.5093602,1626.4,1626.3,0.19196601]
[1745320454048,13.5093602,1626.4,1626.3,0.40139133]
[1745320454408,13.5093602,1626.4,1626.3,0.20942532]
[1745320454823,19.65817465,1626.4,1626.1,4.58280961]
[1745320455154,12.21286382,1626.4,1626.3,0.20942532]
[1745320455338,12.21286382,1626.4,1626.1,4.58280961]
[1745320455649,12.21286382,1626.4,1626.2,0.40146297]
[1745320457150,12.21286382,1626.4,1626.2,0.20949513]
[1745320457753,6.14892701,1626.3,1626.2,0.20949513]
[1745320458847,12.21286382,1626.4,1626.2,0.20949513]
[1745320459150,14.12420043,1626.4,1626.2,0.20949513]
[1745320460360,6.03310922,1626.4,1626.3,3.97266807]
[1745320460516,6.03310922,1626.4,1626.3,4.1820932]
[1745320461453,6.03310922,1626.4,1626.3,3.99013474]
[1745320462962,19.08199467,1626.5,1626.3,3.99013474]
[1745320463162,6.14854894,1626.4,1626.3,3.99013474]
[1745320463759,6.14854894,1626.4,1626.3,4.18209697]
[1745320465655,8.05675525,1626.4,1626.3,0.40138736]
[1745320466761,8.05675525,1626.4,1626.3,0.20942513]
[1745320466957,6.14906001,1626.3,1626.1,4.58280961]
[1745320467138,6.14906001,1626.3,1626.2,0.20946928]
[1745320467722,6.14906001,1626.3,1626.2,0.40144684]
[1745320468861,12.18216923,1626.3,1626.2,0.20946928]
[1745320470161,12.94676923,1626.3,1626.2,0.20946928]
[1745320470375,6.14949779,1626.2,1626.0,1.66206817]
[1745320470554,6.14968329,1626.1,1626.0,1.66206817]
[1745320470765,6.14968329,1626.1,1626.0,0.20958327]
[1745320471284,12.18279251,1626.1,1626.0,0.20958327]
[1745320471487,12.94739251,1626.1,1626.0,0.40158028]
[1745320475283,15.38658151,1626.1,1626.0,0.40158028]
[1745320475593,15.38658151,1626.1,1626.0,0.19199701]
[1745320475887,21.53657722,1626.1,1625.9,1.66206817]
[1745320476091,6.03310922,1626.1,1626.0,1.66206817]
[1745320476255,6.03310922,1626.1,1626.0,1.8580507]
[1745320477299,6.03310922,1626.1,1626.0,0.19598253]
[1745320477892,6.03310922,1626.1,1626.0,0.38798625]
[1745320478980,6.03310922,1626.1,1626.0,0.38798726]
[1745320479697,12.18279251,1626.1,1626.0,0.38798726]
[1745320480900,6.03310922,1626.1,1626.0,0.38798726]
[1745320481197,6.03310922,1626.1,1626.0,0.17894526]
[1745320481370,6.03310922,1626.1,1626.0,0.35859591]
[1745320481568,12.18279251,1626.1,1626.0,0.35859591]
[1745320483416,6.03310922,1626.1,1626.0,0.35859591]
[1745320483598,6.03310922,1626.1,1626.0,0.77266936]
[1745320484201,6.03310922,1626.1,1626.0,0.35859591]
[1745320486494,11.44444768,1626.2,1626.0,0.35859591]
[1745320486694,11.44444768,1626.2,1626.0,0.17965065]
[1745320487590,11.32810922,1626.3,1626.0,0.98825065]
[1745320491504,5.295,1626.3,1626.1,3.78213857]
[1745320491815,5.295,1626.3,1626.2,0.17047248]
[1745320492213,11.32610922,1626.4,1626.2,0.17047248]
[1745320492423,17.47466011,1626.4,1626.2,0.17047248]
[1745320492725,19.83695824,1626.4,1626.2,0.17047248]
[1745320493112,19.83695824,1626.4,1626.1,3.78213857]
[1745320493494,19.83695824,1626.4,1626.2,0.17040839]
[1745320494406,13.80384902,1626.4,1626.2,0.17040839]
[1745320494588,13.80384902,1626.4,1626.3,0.19197303]
[1745320494787,13.80384902,1626.4,1626.3,0.36219626]
[1745320495922,7.65529813,1626.4,1626.3,0.36219626]
[1745320496124,5.293,1626.4,1626.3,0.36219626]
[1745320496428,5.293,1626.4,1626.3,0.19197303]
[1745320496728,5.293,1626.4,1626.3,0.36132274]
[1745320497322,11.44154894,1626.4,1626.3,0.36132274]
[1745320497627,11.44154894,1626.4,1626.3,0.19197303]
[1745320497924,13.8038541,1626.4,1626.3,0.36132274]
[1745320499509,14.6091541,1626.4,1626.3,0.36132274]
[1745320499908,14.6091541,1626.4,1626.3,0.19197303]
[1745320500819,14.6091541,1626.4,1626.3,0.36027232]
[1745320501034,13.8038541,1626.4,1626.3,0.36027232]
[1745320504102,14.6091541,1626.4,1626.3,0.36027232]
[1745320504420,14.6091541,1626.4,1626.3,0.19197303]
[1745320504901,6.14939261,1626.2,1625.9,3.78081749]
[1745320505098,6.15000265,1626.1,1625.9,3.78081749]
[1745320505429,6.15000265,1626.1,1626.0,0.16838047]
[1745320505628,6.15000265,1626.1,1625.8,4.58671749]
[1745320505836,6.15000265,1626.1,1625.9,0.16848871]
[1745320506137,6.15000265,1626.1,1626.0,0.19200693]
[1745320506322,7.58347197,1626.1,1626.0,0.36042585]
[1745320506938,1.43346932,1626.1,1626.0,0.36042585]
[1745320507138,6.95484992,1626.2,1626.0,0.36042585]
[1745320507645,6.95484992,1626.2,1626.0,0.16841892]
[1745320507845,6.95484992,1626.2,1625.8,4.58671749]
[1745320508146,6.95484992,1626.2,1625.9,0.16848871]
[1745320508505,6.95484992,1626.2,1625.8,4.58671749]
[1745320508737,8.26525196,1626.2,1626.0,0.16839329]
[1745320509042,8.26525196,1626.2,1626.1,0.1683107]
[1745320509218,14.41484744,1626.2,1625.8,4.58671749]
[1745320509533,8.26525196,1626.2,1625.9,0.16845026]
[1745320509929,14.29836118,1626.2,1626.0,0.19200106]
[1745320510119,14.29836118,1626.2,1626.0,0.36039435]
[1745320510739,8.14881126,1626.2,1626.0,4.14121184]
[1745320510908,11.32610922,1626.2,1626.0,4.14121184]
[1745320511240,11.32610922,1626.2,1626.1,0.19200106]
[1745320511432,11.32610922,1626.2,1626.1,0.36033739]
[1745320513217,6.03310922,1626.2,1626.1,0.36033739]
[1745320515853,5.293,1626.3,1626.1,0.36033739]
[1745320516361,12.97353803,1626.6,1626.2,3.78081749]
[1745320516522,5.293,1626.5,1626.4,3.78081749]
[1745320516936,5.293,1626.5,1626.4,4.14174708]
[1745320524558,5.293,1626.5,1626.4,0.36092959]
[1745320524770,12.20567091,1626.5,1626.4,0.36092959]
[1745320525069,14.64433177,1626.5,1626.4,0.36092959]
[1745320525266,14.64433177,1626.5,1626.4,0.16892853]
[1745320525467,14.64433177,1626.5,1626.1,3.78081749]
[1745320525664,14.64433177,1626.5,1626.2,0.16892082]
[1745320527062,14.64433177,1626.5,1626.3,0.19196031]
[1745320527263,1.46443318,1626.4,1626.3,0.19196031]
[1745320527440,1.46443318,1626.4,1626.3,0.35918801]
[1745320530567,5.293,1626.5,1626.3,4.1400055]
[1745320531444,5.293,1626.5,1626.4,0.19196031]
[1745320531644,5.293,1626.5,1626.4,0.58383251]
[1745320533930,11.44117091,1626.5,1626.4,0.58383251]
[1745320534161,6.0575,1626.5,1626.4,0.58383251]
[1745320534562,6.0575,1626.5,1626.4,0.3918722]
[1745320534739,8.49616294,1626.5,1626.4,0.3918722]
[1745320534945,8.49616294,1626.5,1626.3,3.78081749]
[1745320535268,8.49616294,1626.5,1626.4,0.39174952]
[1745320535452,8.49616294,1626.5,1626.3,3.78081749]
[1745320535658,14.64439335,1626.5,1626.4,0.39176486]
[1745320535859,8.49616294,1626.5,1626.3,3.78081749]
[1745320536035,8.49616294,1626.5,1626.4,0.39195586]
[1745320536236,8.49616294,1626.5,1626.3,3.78081749]
[1745320536462,8.49616294,1626.5,1626.4,0.39195586]
[1745320536655,8.49616294,1626.5,1626.3,3.78081749]
[1745320536971,8.49616294,1626.5,1626.4,0.39195586]
[1745320537347,8.49616294,1626.5,1626.3,3.78081749]
[1745320537551,8.49616294,1626.5,1626.4,0.39195586]
[1745320537885,14.64449481,1626.5,1626.3,3.78081749]
[1745320538087,1.46444948,1626.4,1626.3,3.78081749]
[1745320538781,1.46444948,1626.4,1626.3,3.97278077]
[1745320542482,1.46444948,1626.4,1626.3,4.36485088]
[1745320542775,12.20567637,1626.5,1626.3,4.36485088]
[1745320543781,12.20567637,1626.5,1626.4,0.19196328]
[1745320544477,12.20567637,1626.5,1626.4,0.58391915]
[1745320544776,12.20567637,1626.5,1626.4,0.19196328]
[1745320544981,12.20567637,1626.5,1626.4,0.58391915]
[1745320545151,14.64434681,1626.5,1626.4,0.19196328]
[1745320545352,14.64434681,1626.5,1626.4,0.58391915]
[1745320545572,14.64434681,1626.5,1626.4,0.19196328]
[1745320545779,14.64434681,1626.5,1626.4,0.58391915]
[1745320546086,14.64434681,1626.5,1626.4,0.58477857]
[1745320551308,7.73167044,1626.5,1626.4,2.24661235]
[1745320551595,7.73167044,1626.5,1626.4,0.58477857]
[1745320552169,7.73167044,1626.5,1626.4,2.24661235]
[1745320552388,5.293,1626.5,1626.4,2.24661235]
[1745320552578,5.293,1626.5,1626.4,0.58477857]
[1745320554206,5.293,1626.5,1626.4,2.24661235]
[1745320557076,11.31910922,1626.6,1626.4,2.24661235]
[1745320557887,17.46690791,1626.6,1626.4,2.24661235]
[1745320558213,1.74669079,1626.5,1626.4,2.05464907]
[1745320558874,17.46690791,1626.6,1626.4,2.05464907]
[1745320559081,11.31910922,1626.6,1626.4,2.05464907]
[1745320559586,17.46690382,1626.6,1626.4,2.05464907]
[1745320560103,11.31910922,1626.6,1626.4,2.05464907]
[1745320560307,17.46692377,1626.6,1626.5,0.19194867]
[1745320560473,19.90983893,1626.6,1626.5,0.19194867]
[1745320562483,19.90983893,1626.6,1626.5,0.58423719]
[1745320563010,19.90983893,1626.6,1626.5,0.19194867]
[1745320563814,20.72013893,1626.6,1626.5,0.19194867]
[1745320566795,6.14841971,1626.5,1626.2,1.66183378]
[1745320566999,6.14856548,1626.4,1626.2,1.66183378]
[1745320567206,8.83528855,1626.5,1626.3,0.39245559]
[1745320567700,8.83528855,1626.5,1626.4,0.19196479]
[1745320568097,8.83528855,1626.5,1626.4,0.58433684]
[1745320568318,8.83528855,1626.5,1626.4,0.19196479]
[1745320568495,14.86839777,1626.5,1626.4,0.58433684]
[1745320568696,14.86839777,1626.5,1626.4,0.19196479]
[1745320569180,14.86839777,1626.5,1626.4,0.58433684]
[1745320575292,15.64019777,1626.5,1626.4,0.19196479]
[1745320575621,6.14923132,1626.3,1626.0,1.66183378]
[1745320575786,6.76415445,1626.3,1626.0,1.66183378]
[1745320575994,5.286,1626.2,1626.1,0.35984348]
[1745320576195,11.31910922,1626.2,1626.1,0.35984348]
[1745320576829,11.31910922,1626.2,1626.1,2.21366911]
[1745320577029,11.31910922,1626.2,1626.1,3.02576911]
[1745320578194,12.45102014,1626.2,1626.1,3.02576911]
[1745320578399,11.31910922,1626.2,1626.1,3.02576911]
[1745320579141,6.03310922,1626.2,1626.1,3.02576911]
[1745320579644,6.03310922,1626.2,1626.1,3.08726413]
[1745320579841,6.03310922,1626.2,1626.1,3.02576911]
[1745320580208,11.32010922,1626.6,1626.1,3.02576911]
[1745320580540,11.32010922,1626.6,1626.4,1.66183378]
[1745320580910,11.32010922,1626.6,1626.5,0.36271018]
[1745320581239,11.32010922,1626.6,1626.4,1.66183378]
[1745320581437,11.32010922,1626.6,1626.5,0.55470203]
[1745320581640,11.32010922,1626.6,1626.5,0.19199185]
[1745320581840,13.06686584,1626.6,1626.5,0.19199185]
[1745320583041,13.06686584,1626.6,1626.5,0.55470203]
[1745320583346,6.91905873,1626.8,1626.5,0.55470203]
[1745320583347,6.03310922,1626.8,1626.5,3.02863581]
[1745320583644,6.03310922,1626.8,1626.7,2.47393378]
[1745320583851,6.03310922,1626.8,1626.7,2.83407425]
[1745320584053,11.31610922,1627.1,1626.7,2.02197425]
[1745320584216,13.06229415,1627.1,1626.9,1.66183378]
[1745320584956,11.31610922,1627.1,1627.0,1.66183378]
[1745320585558,6.03310922,1627.1,1627.0,4.891655]
[1745320585906,6.03310922,1627.3,1627.0,4.891655]
[1745320586957,6.03310922,1627.3,1627.1,0.19185579]
[1745320587453,6.03310922,1627.3,1627.2,0.35736728]
[1745320587745,6.03310922,1627.3,1627.1,0.19185579]
[1745320587944,6.03310922,1627.3,1627.2,0.35739796]
[1745320588309,6.03310922,1627.3,1627.0,4.53412095]
[1745320588506,6.03310922,1627.3,1627.2,0.35739796]
[1745320588709,6.03310922,1627.3,1627.1,0.35742002]
[1745320589146,11.31510922,1627.4,1627.2,3.77682095]
[1745320589315,11.31510922,1627.4,1627.3,0.7573]
[1745320589516,11.31510922,1627.4,1627.3,1.11456847]
[1745320592562,6.03310922,1627.4,1627.3,1.11456847]
[1745320593358,6.03310922,1627.4,1627.3,0.35726847]
[1745320593928,6.03310922,1627.4,1627.2,3.77682095]
[1745320594140,6.03310922,1627.4,1627.3,0.34307828]
[1745320595062,12.98569929,1627.5,1627.3,0.34307828]
[1745320595367,14.66308846,1627.5,1627.3,0.34307828]
[1745320595662,14.66308846,1627.5,1627.2,3.77682095]
[1745320595859,14.66308846,1627.5,1627.3,0.34309363]
[1745320597570,20.80780336,1627.5,1627.3,0.34309363]
[1745320597741,14.66308846,1627.5,1627.3,0.34309363]
[1745320597942,1.46630885,1627.4,1627.1,4.53412095]
[1745320598162,14.66308846,1627.5,1627.1,4.53412095]
[1745320598363,14.66308846,1627.5,1627.2,0.34316173]
[1745320598834,14.66308846,1627.5,1627.3,0.34307828]
[1745320599137,14.66308846,1627.5,1627.1,4.53412095]
[1745320599633,14.66308846,1627.5,1627.2,0.34316173]
[1745320599833,14.66308846,1627.5,1627.1,4.53412095]
[1745320600035,7.61142743,1627.4,1627.1,4.53412095]
[1745320600285,7.61142743,1627.4,1627.2,0.34317708]
[1745320600463,7.61142743,1627.4,1627.1,4.53412095]
[1745320600774,7.61142743,1627.4,1627.2,0.34303894]
[1745320601078,6.14514871,1627.3,1627.1,3.77682095]
[1745320601388,7.61141489,1627.4,1627.2,0.34316171]
[1745320601741,7.61141489,1627.4,1627.1,3.77682095]
[1745320601945,7.61141489,1627.4,1627.3,0.34306292]
[1745320602143,7.61141489,1627.4,1627.2,0.34316171]
[1745320602346,1.46630885,1627.4,1627.3,0.34307827]
[1745320602548,7.61107965,1627.4,1627.3,0.34307827]
[1745320602755,1.46630885,1627.4,1627.1,4.60052095]
[1745320603048,12.98575311,1627.5,1627.2,0.34316171]
[1745320603349,12.98575311,1627.5,1627.1,4.60052095]
[1745320603658,19.13045578,1627.5,1627.2,0.34316171]
[1745320603857,19.13045578,1627.5,1627.1,4.60052095]
[1745320604060,6.14477783,1627.4,1627.2,0.34316171]
[1745320604273,8.05783092,1627.4,1627.1,4.60052095]
[1745320604449,8.05783092,1627.4,1627.2,0.34316171]
[1745320604652,0.7639,1627.1,1626.7,4.60052095]
[1745320604851,6.14642314,1627.0,1626.8,0.31274156]
[1745320605106,6.14665929,1626.9,1626.8,0.31274156]
[1745320605693,6.147313,1626.8,1626.5,4.60052095]
[1745320605854,6.147313,1626.8,1626.6,0.26158686]
[1745320606281,12.29461257,1626.8,1626.6,0.26158686]
[1745320606468,18.3277271,1626.8,1626.6,0.26158686]
[1745320606663,7.98018772,1626.7,1626.6,0.26158686]
[1745320606868,6.14741501,1626.7,1626.6,0.26158686]
[1745320609494,12.18040879,1626.8,1626.6,0.26158686]
[1745320610302,6.91131501,1626.7,1626.6,0.26158686]
[1745320610471,6.14922549,1626.3,1626.1,4.60052095]
[1745320610672,6.14922549,1626.3,1626.2,0.24859146]
[1745320610889,6.91255591,1626.4,1626.1,4.60052095]
[1745320611189,6.14895225,1626.3,1626.2,0.24859146]
[1745320611576,12.29920721,1626.2,1625.9,4.60052095]
[1745320611790,6.14953453,1626.2,1625.9,4.60052095]
[1745320612097,12.29909427,1626.2,1626.0,0.2487586]
[1745320612610,12.29915212,1626.2,1626.0,0.2487586]
[1745320613701,6.14953453,1626.2,1626.0,0.2487586]
[1745320614009,12.29832338,1626.3,1626.0,0.2487586]
[1745320614176,6.14911776,1626.3,1626.0,0.2487586]
[1745320615015,10.37592906,1626.8,1626.0,0.2487586]
[1745320615016,7.67491829,1627.5,1626.3,0.8005]
[1745320615174,7.67491829,1627.5,1626.7,6.1473688]
[1745320615175,6.14511987,1627.4,1626.7,6.1473688]
[1745320615493,6.14526478,1627.3,1626.8,0.24809031]
[1745320615696,6.14579583,1627.2,1626.8,0.24809031]
[1745320616412,12.28989121,1627.4,1626.8,0.24809031]
[1745320616711,6.14534834,1627.3,1626.8,0.96766548]
[1745320617612,6.14534834,1627.3,1626.8,0.24809031]
[1745320617813,7.44939992,1627.4,1627.0,3.77682095]
[1745320618108,6.14462207,1627.5,1627.1,1.00143987]
[1745320618475,11.42318085,1627.6,1627.2,3.77682095]
[1745320618703,11.42318085,1627.6,1627.3,0.24767296]
[1745320618905,0.3204595,1627.8,1627.4,3.77682095]
[1745320618906,5.5994595,1627.8,1627.4,3.77682095]
[1745320619075,6.14363861,1627.7,1627.5,0.2475061]
[1745320620613,6.14401572,1627.6,1627.5,0.2475061]
[1745320620914,6.14401572,1627.6,1627.3,0.7536]
[1745320621089,6.14401572,1627.6,1627.4,0.24758953]
[1745320621287,7.45402115,1627.6,1627.3,0.7536]
[1745320621587,7.45402115,1627.6,1627.4,0.24758953]
[1745320621988,7.45402115,1627.6,1627.3,0.7536]
[1745320622210,7.45402115,1627.6,1627.5,0.2475061]
[1745320622402,7.45402115,1627.6,1627.4,0.24758953]
[1745320622605,7.45402115,1627.6,1627.5,0.2475061]
[1745320622924,13.59831296,1627.6,1627.2,3.77682095]
[1745320623109,7.45402115,1627.6,1627.3,0.24767296]
[1745320623519,12.73202115,1627.6,1627.3,0.24767296]
[1745320624322,18.76513037,1627.6,1627.3,0.24767296]
[1745320624728,6.96290299,1627.5,1627.3,0.24767296]
[1745320624893,6.1447708,1627.4,1627.3,0.24767296]
[1745320625089,6.14527587,1627.3,1627.0,3.77682095]
[1745320625425,6.14527587,1627.3,1627.1,0.23967662]
[1745320626990,12.1780803,1627.4,1627.1,0.23967662]
[1745320627191,7.94721885,1627.4,1627.1,0.23967662]
[1745320627500,6.03310922,1627.4,1627.1,0.23967662]
[1745320627918,12.17788654,1627.4,1627.1,0.23967662]
[1745320628697,6.03310922,1627.8,1627.2,10.73720173]
[1745320628904,6.03310922,1627.8,1627.6,3.77682095]
[1745320629120,13.42609004,1627.8,1627.7,0.23291043]
[1745320629616,13.42609004,1627.8,1627.6,3.77682095]
[1745320629934,13.42609004,1627.8,1627.7,0.23291043]
[1745320630109,13.42609004,1627.8,1627.6,3.77682095]
[1745320630309,13.42609004,1627.8,1627.7,0.23291043]
[1745320630509,13.42609004,1627.8,1627.4,3.77682095]
[1745320630713,13.42609004,1627.8,1627.5,0.23307726]
[1745320631028,1.342609,1627.7,1627.5,0.23307726]
[1745320632906,7.48646912,1627.7,1627.5,0.23307726]
[1745320633112,8.30256912,1627.7,1627.5,0.23307726]
[1745320633308,6.14401572,1627.6,1627.5,0.23307726]
[1745320633820,11.42101572,1627.6,1627.5,0.23307726]
[1745320634040,8.61984993,1627.6,1627.5,1.01947726]
[1745320634337,6.03310922,1627.6,1627.5,0.7864]
[1745320634544,6.03310922,1627.6,1627.5,1.01947726]
[1745320634698,12.17712494,1627.6,1627.5,0.23307726]
[1745320635636,17.45412494,1627.6,1627.5,0.23307726]
[1745320635825,6.14487592,1627.4,1627.1,0.7864]
[1745320636029,12.16613712,1627.4,1627.1,0.7864]
[1745320636329,12.16613712,1627.4,1627.2,0.23329688]
[1745320636528,6.1451484,1627.3,1627.1,0.7864]
[1745320636714,6.1451484,1627.3,1627.2,0.23318943]
[1745320636917,6.1451484,1627.3,1627.0,3.77682095]
[1745320637233,18.31120447,1627.4,1627.1,0.23343185]
[1745320637410,14.11090867,1627.4,1627.1,0.23343185]
[1745320638437,6.0212612,1627.4,1627.1,0.23343185]
[1745320639139,6.0212612,1627.4,1627.2,4.56322095]
[1745320639318,6.0212612,1627.4,1627.3,0.23383429]
[1745320640704,0.32041105,1627.5,1627.3,0.23383429]
[1745320640921,0.32041105,1627.5,1627.4,4.56322095]
[1745320641127,0.32041105,1627.5,1627.4,4.79698715]
[1745320641441,0.32041105,1627.5,1627.4,5.33813104]
[1745320641650,0.32041105,1627.5,1627.4,5.27668586]
[1745320642036,0.32041105,1627.5,1627.4,5.46848254]
[1745320647132,0.32041105,1627.5,1627.4,4.20238383]
[1745320647653,0.32041105,1627.5,1627.4,0.42556288]
[1745320647812,7.22710429,1627.5,1627.4,0.42556288]
[1745320650353,0.32041105,1627.5,1627.4,0.42556288]
[1745320650652,6.34167225,1627.5,1627.4,0.42556288]
[1745320658240,12.48606549,1627.5,1627.4,0.42556288]
[1745320658588,14.34908722,1627.5,1627.4,0.42556288]
[1745320661942,6.34167225,1627.5,1627.4,0.42556288]
[1745320662139,6.34167225,1627.5,1627.4,1.22426288]
[1745320662338,0.32041105,1627.5,1627.4,1.22426288]
[1745320663893,6.0212612,1627.8,1627.4,1.22426288]
[1745320664041,6.0212612,1627.8,1627.5,3.77682095]
[1745320664377,6.0212612,1627.8,1627.6,0.22838147]
[1745320665681,6.0212612,1627.8,1627.7,0.19179668]
[1745320666355,6.0212612,1627.8,1627.7,0.42011009]
[1745320669079,11.2962612,1627.9,1627.7,1.21881009]
[1745320669395,11.2962612,1627.9,1627.8,0.19179668]
[1745320669558,5.275,1627.9,1627.8,0.19179668]
[1745320669754,5.275,1627.9,1627.8,0.42004205]
[1745320670687,11.41788346,1627.9,1627.8,0.42004205]
[1745320671062,11.41788346,1627.9,1627.8,0.22824537]
[1745320672607,12.92211427,1628.0,1627.8,0.22824537]
[1745320672965,19.06489769,1628.0,1627.8,0.22824537]
[1745320673174,22.99808746,1628.0,1627.8,0.22824537]
[1745320673762,16.85530404,1628.0,1627.8,0.22824537]
[1745320674065,6.14288346,1627.9,1627.8,0.22824537]
[1745320674897,22.99813887,1628.0,1627.8,0.22824537]
[1745320675099,22.9980893,1628.0,1627.8,0.22824537]
[1745320675299,16.85530404,1628.0,1627.8,0.22824537]
[1745320675609,10.71265097,1628.0,1627.8,0.22824537]
[1745320675811,6.0212612,1628.0,1627.8,0.22824537]
[1745320676479,19.1190086,1628.3,1627.9,4.79017864]
[1745320676681,18.25038398,1628.3,1627.9,4.79017864]
[1745320676898,24.3920716,1628.3,1628.0,0.22447452]
[1745320678403,6.14175534,1628.2,1628.0,0.22447452]
[1745320679795,6.14212886,1628.1,1628.0,0.22447452]
[1745320679998,12.28380756,1628.2,1628.0,0.22447452]
[1745320680198,12.28380756,1628.2,1627.7,5.05446999]
[1745320680409,12.28380756,1628.2,1627.8,0.505447]
[1745320680702,6.1421439,1628.1,1627.8,0.73008826]
[1745320680907,6.14288346,1627.9,1627.8,0.22464126]
[1745320681070,12.16414466,1627.9,1627.8,0.22464126]
[1745320681269,6.14357499,1627.8,1627.5,4.59842095]
[1745320681469,6.14369899,1627.7,1627.5,4.59842095]
[1745320681667,6.14369899,1627.7,1627.6,0.22480805]
[1745320681925,6.14357499,1627.8,1627.6,0.22480805]
[1745320682084,6.14357499,1627.8,1627.6,0.41660582]
[1745320682510,12.28715096,1627.8,1627.6,0.41660582]
[1745320682807,6.14357499,1627.8,1627.6,0.41660582]
[1745320683479,6.14357499,1627.8,1627.6,0.22480805]
[1745320684773,12.28709223,1627.8,1627.6,0.22480805]
[1745320685198,24.3950159,1627.9,1627.6,0.22480805]
[1745320685397,27.13451749,1627.9,1627.6,0.22480805]
[1745320685709,6.1432636,1627.8,1627.6,0.22480805]
[1745320685870,20.99135448,1627.9,1627.6,0.22480805]
[1745320686275,11.2942612,1627.9,1627.6,0.22480805]
[1745320686503,11.2942612,1627.9,1627.7,0.1917875]
[1745320686777,14.2942612,1627.9,1627.8,0.22436938]
[1745320687527,6.0212612,1627.9,1627.8,0.41615688]
[1745320687692,6.0212612,1627.9,1627.8,1.74535801]
[1745320691508,6.34161048,1627.9,1627.8,1.74535801]
[1745320691716,0.32034928,1627.9,1627.8,1.74535801]
[1745320694425,6.14288346,1627.9,1627.8,0.41615688]
[1745320694830,6.91608346,1627.9,1627.8,0.41615688]
[1745320695287,6.91608346,1627.9,1627.8,0.1917875]
[1745320695716,12.93734466,1627.9,1627.8,0.1917875]
[1745320695925,6.14427933,1627.6,1627.2,4.53662095]
[1745320696134,12.93874053,1627.6,1627.2,4.53662095]
[1745320696432,12.93874053,1627.6,1627.3,0.20642344]
[1745320697214,6.7944612,1627.6,1627.3,0.20642344]
[1745320697420,12.93857457,1627.6,1627.4,0.19182151]
[1745320697816,12.93857457,1627.6,1627.5,0.20625663]
[1745320698023,6.7944612,1627.6,1627.5,0.20625663]
[1745320698209,6.0212612,1627.6,1627.5,0.20625663]
[1745320698630,6.0212612,1627.6,1627.5,0.81556805]
[1745320698820,6.0212612,1627.6,1627.5,1.57536805]
[1745320700430,6.0212612,1627.6,1627.5,0.81556805]
[1745320700609,5.273,1627.7,1627.5,0.39807814]
[1745320701242,5.273,1627.7,1627.6,0.19182151]
[1745320701437,11.41680118,1627.7,1627.6,0.19182151]
[1745320701662,11.41680118,1627.7,1627.6,0.39799475]
[1745320702015,12.19000118,1627.7,1627.6,0.39799475]
[1745320702215,14.62545893,1627.7,1627.6,0.39799475]
[1745320702645,14.62545893,1627.7,1627.6,0.20617324]
[1745320702846,20.64672013,1627.7,1627.6,0.20617324]
[1745320703114,20.64672013,1627.7,1627.2,3.77682095]
[1745320703315,20.64672013,1627.7,1627.6,0.20617324]
[1745320703515,6.14405827,1627.6,1627.2,3.77682095]
[1745320703747,12.16531947,1627.6,1627.2,4.76392806]
[1745320704361,6.0212612,1627.6,1627.3,0.19181615]
[1745320704565,12.1653832,1627.6,1627.3,0.19181615]
[1745320705429,6.0212612,1627.6,1627.4,0.19181615]
[1745320705645,12.16528994,1627.6,1627.4,0.19181615]
[1745320706585,12.16528994,1627.6,1627.2,4.76392806]
[1745320707488,12.16528994,1627.6,1627.3,0.19262345]
[1745320707787,12.16528994,1627.6,1627.3,0.384445]
[1745320708353,3.0,1627.5,1627.3,0.384445]
[1745320708595,12.16528994,1627.6,1627.4,0.19182155]
[1745320708886,12.16528994,1627.6,1627.5,0.19244129]
[1745320709675,6.0212612,1627.6,1627.5,0.19244129]
[1745320709856,6.0212612,1627.6,1627.5,0.38426284]
[1745320711993,12.16527692,1627.6,1627.5,0.38426284]
[1745320712195,14.79370605,1627.6,1627.5,0.38426284]
[1745320712493,6.1456332,1627.2,1626.9,0.827]
[1745320712694,6.0212612,1627.2,1626.9,0.827]
[1745320712862,6.0212612,1627.2,1627.0,3.95244846]
[1745320713692,6.0212612,1627.2,1627.1,0.19185994]
[1745320714092,6.0212612,1627.2,1627.1,0.36743469]
[1745320717181,12.16678725,1627.2,1627.1,0.36743469]
[1745320717363,12.16678725,1627.2,1627.1,0.17557475]
[1745320717800,6.0212612,1627.2,1627.1,0.17557475]
[1745320721166,6.0212612,1627.2,1627.1,0.36743362]
[1745320724691,6.0212612,1627.2,1627.1,1.59115908]
[1745320726323,12.0572612,1627.6,1627.1,1.59115908]
[1745320726515,12.0572612,1627.6,1627.3,3.77682095]
[1745320726798,12.0572612,1627.6,1627.4,0.17820439]
[1745320726964,11.2942612,1627.6,1627.4,0.17820439]
[1745320727165,11.2942612,1627.6,1627.3,4.58612095]
[1745320727368,11.2942612,1627.6,1627.5,0.17726905]
[1745320727598,17.43827801,1627.6,1627.4,0.17735248]
[1745320727805,17.43827801,1627.6,1627.5,0.17726905]
[1745320728169,17.43827801,1627.6,1627.3,4.58612095]
[1745320728368,17.43827801,1627.6,1627.5,0.17726905]
[1745320728609,6.14439324,1627.5,1627.1,4.58612095]
[1745320728773,6.14484518,1627.4,1627.1,3.77682095]
[1745320728977,6.90739324,1627.5,1627.2,0.19184323]
[1745320730396,6.90739324,1627.5,1627.3,0.19184323]
[1745320730704,0.763,1627.5,1627.3,0.19184323]
[1745320730909,6.90742599,1627.5,1627.3,0.19184323]
[1745320731081,9.58545662,1627.5,1627.3,0.19184323]
[1745320731407,3.44103063,1627.5,1627.3,0.19184323]
[1745320731905,3.44103063,1627.5,1627.4,0.19184323]
[1745320732890,9.46229183,1627.5,1627.4,0.19184323]
[1745320734626,6.0212612,1627.5,1627.4,0.19184323]
[1745320737505,6.0212612,1627.5,1627.4,0.3692264]
[1745320741724,5.273,1627.6,1627.4,0.3692264]
[1745320743527,5.273,1627.6,1627.5,0.19184323]
[1745320743892,5.273,1627.6,1627.5,0.36862371]
[1745320745636,6.0325,1627.6,1627.5,0.36862371]
[1745320745798,13.99626873,1627.6,1627.5,0.36862371]